Cogmind - Beta 10.2 @@@ ROGUE MODE // 2021.04.01 @ 09:17:27 // AFD2021/Volatile Player: SHADOWELITE7 Result: Destroyed self via exploding Compression Vault Performance ------------- Evolutions (1) 500 Regions Visited (6) 1200 Robots Destroyed (49) 245 Value Destroyed (1085) 1085 Prototype IDs (3) 60 Alien Tech Used (0) 0 Bonus (336) 336 TOTAL SCORE: 3426 Bonus ------- Follower Combat Kills 54 Aligned with FarCom 300 Friendly Fire -18 Cogmind --------- Core Integrity 0/400 Matter 269/300 Energy 99/100 System Corruption 2% Temperature Cool (9) Movement Core (650) Ox12 Location -8/Mines Parts ------- > --- POWER (2) -------- (None) > --- PROPULSION (3) --- (None) > --- UTILITY (2) ------ Large Storage Unit Large Storage Unit > --- WEAPON (2) ------- Minigun Longsword +1 > --- INVENTORY (16) --- 0b10 Alert Chip ECM Suite Peak State ------------ > --- POWER ------------ Light Ion Engine > --- PROPULSION ------- Advanced Treads > --- UTILITY ---------- Large Storage Unit Large Storage Unit > --- WEAPON ----------- Advanced Beam Cannon Improved Assault Rifle > --- INVENTORY -------- Flying Fortress v7 0b10 Alert Chip ECM Suite Improved Assault Rifle Improved Assault Rifle Longsword +1 [Rating: 17] Favorites ----------- Power Light Ion Engine Engine Light Ion Engine Propulsion Carbon-fiber Leg Treads Advanced Treads Leg Carbon-fiber Leg Utility Large Storage Unit Device Reclamation Unit Storage Large Storage Unit Weapon Advanced Beam Cannon Energy Gun EM Pulse Gun Energy Cannon Advanced Beam Cannon Ballistic Gun Improved Assault Rifle Ballistic Cannon Light Cannon Slashing Weapon Longsword +1 Build | -11 -10 -10 -9 -9 -9 -8 ------- Run | Scr Mat Min Mat Min Exi Min Slots Evolved 2 | . . . 2 . . . Power 1 | . . . 1 . . . Propulsion 1 | . . . 1 . . . Utility . | . . . . . . . Weapon . | . . . . . . . Parts Attached 35 | 6 7 6 9 2 1 4 Power 4 | 1 1 . 2 . . . Engine 4 | 1 1 . 2 . . . Core . | . . . . . . . Reactor . | . . . . . . . Propulsion 14 | 2 . 5 4 2 1 . Treads 4 | 2 . . . 1 1 . Leg 10 | . . 5 4 1 . . Wheel . | . . . . . . . Hover . | . . . . . . . Flight . | . . . . . . . Utility 4 | 1 3 . . . . . Device 1 | . 1 . . . . . Storage 3 | 1 2 . . . . . Processor . | . . . . . . . Hackware . | . . . . . . . Protection . | . . . . . . . Artifact . | . . . . . . . Weapon 13 | 2 3 1 3 . . 4 Energy Gun 3 | 1 2 . . . . . Energy Cannon 2 | . . . 2 . . . Ballistic Gun 6 | 1 . 1 1 . . 3 Ballistic Cannon 1 | . 1 . . . . . Launcher . | . . . . . . . Special Weapon . | . . . . . . . Impact Weapon . | . . . . . . . Slashing Weapon 1 | . . . . . . 1 Piercing Weapon . | . . . . . . . Special Melee Weapon . | . . . . . . . Unidentified Prototypes 3 | . . . 2 . . 1 Parts Lost 21 | . 4 4 7 1 . 5 Power 3 | . 1 . 1 . . 1 Propulsion 9 | . 1 2 4 1 . 1 Utility . | . . . . . . . Weapon 9 | . 2 2 2 . . 3 Highest Loss Streak 5 | . 3 2 2 1 . 5 Average Slot Usage (%) 70 | . 82 77 71 74 65 37 Engine 7 | . 10 . 12 11 11 . Treads 7 | . 24 2 . 1 10 1 Leg 8 | . . 18 23 18 . . Storage 23 | . 19 28 22 22 22 22 Energy Gun 3 | . 13 6 . . . . Energy Cannon 5 | . . . 5 11 11 . Ballistic Gun 9 | . 9 6 7 11 11 3 Ballistic Cannon 3 | . 1 12 . . . . Naked Turns . | . . . . . . . Heaviest Build 45 | 11 39 38 45 42 42 38 Greatest Support 40 | 40 40 30 40 25 22 3 Greatest Overweight (x) 13 | 2 1 12 2 2 13 12 Average Overweight (x) 1 | . . 1 . 1 1 11 Largest Inventory Capacity 16 | 6 16 16 16 16 16 16 Average Capacity 15 | 5 9 16 16 16 16 16 Most Carried 10 | 4 5 4 8 5 10 5 Average Carried 2 | 2 1 1 4 3 3 2 Final Capacity 16 | 6 16 16 16 16 16 16 Final Carried 5 | 2 1 3 4 3 5 2 Class Distribution -------------------- 96% | Mutant 3% | Scavenger-Mutant Dominant Class ---------------- Mutant | -10/Materials Mutant | -10/Mines Mutant | -9/Materials Mutant | -9/Mines Mutant | -9/Exiles Mutant | -8/Mines Resources | -11 -10 -10 -9 -9 -9 -8 ----------- Run | Scr Mat Min Mat Min Exi Min Matter Collected 611 | 155 145 125 106 27 . 53 Remotely . | . . . . . . . Salvage Created 1359 | . 507 64 494 107 . 187 Parts 79 | . 31 2 38 3 . 5 Haulers Intercepted 2 | . . . 2 . . . Recyclers Shooed 2 | . . . 2 . . . Parts Field Recycled . | . . . . . . . Retrieved Matter . | . . . . . . . Parts Self-Destructed . | . . . . . . . Prevented . | . . . . . . . Kills | -11 -10 -10 -9 -9 -9 -8 ------- Run | Scr Mat Min Mat Min Exi Min Combat Hostiles Destroyed 26 | . 9 2 9 2 . 4 Melee 1 | . . . . . . 1 Guns 9 | . 6 . 1 . . 2 Cannons 6 | . . 1 4 1 . . AOE 9 | . 3 1 4 . . 1 Classes Destroyed 12 | . 7 . 3 1 . 1 Worker 3 | . 2 . 1 . . . Builder 4 | . 3 . 1 . . . Tunneler 1 | . . . . 1 . . Hauler 2 | . . . 2 . . . Recycler 3 | . 2 . 1 . . . Mechanic 1 | . . . 1 . . . Operator 4 | . 1 . 3 . . . Watcher 5 | . 2 . 3 . . . Swarmer 9 | . 3 . 6 . . . Grunt 15 | . 6 2 2 2 . 3 Duelist 1 | . . . . . . 1 Sentry 1 | . . . 1 . . . Best Kill Streak 8 | . 8 2 7 3 . 2 Combat Bots Only 5 | . 3 2 5 2 . 2 Max Kills in Single Turn 8 | . 8 2 5 1 . 2 Gunslinging . | . . . . . . . Exploded 3 | . 1 1 3 . . 1 Melee 1 | . . . . . . 1 Uniques/NPCs Destroyed . | . . . . . . . Combat | -11 -10 -10 -9 -9 -9 -8 -------- Run | Scr Mat Min Mat Min Exi Min Damage Taken 2583 | . 593 223 559 143 . 1065 Core 485 | . 43 26 108 59 . 249 Absorbed by Shields . | . . . . . . . Core Remaining (%) 86 | 100 . 72 . . . . Volleys Fired 91 | 1 28 5 33 10 . 14 Largest 2 | 2 2 2 1 1 . 2 Hottest 85 | 60 85 75 68 68 . 68 Shots Fired 124 | 2 49 10 33 10 . 20 Gun 82 | 2 49 5 8 . . 18 Cannon 42 | . . 5 25 10 . 2 Launcher . | . . . . . . . Special . | . . . . . . . Kinetic 54 | 1 21 6 8 . . 18 Thermal 37 | . . . 25 10 . 2 Explosive . | . . . . . . . Electromagnetic 33 | 1 28 4 . . . . Robot Hit Streak 11 | . 8 3 4 8 . 11 Robot Miss Streak 3 | . 2 3 2 1 . 1 Penetration Max . | . . . . . . . Secondary Targets . | . . . . . . . Shots Hit Robots 89 | . 31 4 22 9 . 23 Core Hits 71 | . 31 2 26 3 . 9 Critical Hits 2 | . . . . 2 . . Critical Kills 1 | . . . . 1 . . Critical Parts Destroyed 1 | . . . . 1 . . Melee Attacks 7 | . . . . . . 7 Impact . | . . . . . . . Slashing 7 | . . . . . . 7 Piercing . | . . . . . . . Sneak Attacks . | . . . . . . . Combat Hostiles . | . . . . . . . Follow-up Attacks . | . . . . . . . Damage Inflicted 4247 | . 1596 202 1225 232 . 992 Guns 835 | . 385 25 136 . . 289 Cannons 664 | . . 69 371 184 . 40 Explosions 2466 | . 1211 98 718 48 . 391 Melee 272 | . . . . . . 272 Ramming 10 | . . 10 . . . . Kinetic 630 | . 136 69 136 . . 289 Thermal 1592 | . 435 98 810 209 . 40 Explosive 1160 | . 572 . 230 . . 358 Electromagnetic 583 | . 453 25 49 23 . 33 Impact . | . . . . . . . Slashing 272 | . . . . . . 272 Piercing . | . . . . . . . Highest Corruption 2 | . . 2 2 2 2 2 Average Corruption 2 | . . 2 2 2 2 2 Corruption Purged . | . . . . . . . Effects 26 | . . . 1 7 18 . Message Errors 7 | . . . . 2 5 . Heat Flow Errors 8 | . . . . 1 7 . Energy Discharges 7 | . . . . 3 4 . Data Loss (minor) 3 | . . . 1 . 2 . Targeting Errors 1 | . . . . 1 . . Overload Shots . | . . . . . . . Overflow Damage 448 | . 232 23 36 3 . 154 Projectiles 6 | . . . 3 3 . . Explosions 364 | . 232 23 33 . . 76 Melee 78 | . . . . . . 78 Knockbacks 1 | . . 1 . . . . Impact . | . . . . . . . Kinetic 1 | . . 1 . . . . Secondary . | . . . . . . . Self-Inflicted Damage 585 | . 225 77 137 20 . 126 Shots 20 | . 5 1 8 2 . 4 Rammed 1 | . . 1 . . . . Targets Rammed 1 | . . 1 . . . . Kicked . | . . . . . . . Crushed . | . . . . . . . Highest Temperature 304 | . 72 63 240 304 262 89 Average Temperature 79 | . 29 36 89 143 105 45 Received Heat Transfer 915 | . 168 66 87 72 . 522 Effects 2 | . . . 1 1 . . Energy Bleed 2 | . . . 1 1 . . Siege Activations . | . . . . . . . Robots Corrupted . | . . . . . . . Combat Hostiles . | . . . . . . . Parts Fried 1 | . 1 . . . . . Impact Corruptions . | . . . . . . . Robots Melted 1 | . . . . 1 . . Combat Hostiles 1 | . . . . 1 . . Parts Melted 5 | . . . 3 2 . . Heat Transferred 2243 | . 430 50 1306 383 . 74 Parts Sabotaged . | . . . . . . . Parts Stolen . | . . . . . . . Parts Stripped . | . . . . . . . Power Chain Reactions 5 | . 3 . 2 . . . Missiles Intercepted . | . . . . . . . Alert | -11 -10 -10 -9 -9 -9 -8 ------- Run | Scr Mat Min Mat Min Exi Min Peak Influence . | . . . . . . . Initial 153 | . . 48 . 153 . . Average . | . . . . . . . Maximum Alert Level 1 | . 1 . 1 . . . Low Security (%) 90 | 100 75 100 47 100 . 100 Level 1 9 | . 24 . 52 . . . Level 2 . | . . . . . . . Level 3 . | . . . . . . . Level 4 . | . . . . . . . Level 5 . | . . . . . . . High Security . | . . . . . . . Max Security . | . . . . . . . Squads Dispatched 4 | . 1 . 3 . . . Investigation . | . . . . . . . Extermination . | . . . . . . . Reinforcement 4 | . 1 . 3 . . . Assault . | . . . . . . . Garrison . | . . . . . . . Intercept . | . . . . . . . Construction Impeded . | . . . . . . . Haulers Reinforced . | . . . . . . . Stealth | -11 -10 -10 -9 -9 -9 -8 --------- Run | Scr Mat Min Mat Min Exi Min Distress Signals 1 | . 1 . . . . . Communications Jammed . | . . . . . . . Distress Signals . | . . . . . . . Times Spotted 50 | . 14 7 20 2 . 7 Peak Tracking Total 4 | . 4 3 4 2 . 4 Tactical Retreats 2 | . . . 1 . . 1 Traps | -11 -10 -10 -9 -9 -9 -8 ------- Run | Scr Mat Min Mat Min Exi Min Traps Triggered 1 | . 1 . . . . . Indirectly . | . . . . . . . Trap Hack Attempts . | . . . . . . . Triggered . | . . . . . . . Disarmed . | . . . . . . . Reprogrammed . | . . . . . . . Reused . | . . . . . . . Traps Extracted . | . . . . . . . Installed . | . . . . . . . Triggered . | . . . . . . . Machines | -11 -10 -10 -9 -9 -9 -8 ---------- Run | Scr Mat Min Mat Min Exi Min Machines Disabled 11 | . 4 1 6 . . . Max in Single Turn 3 | . 3 1 2 . . . Machines Sabotaged . | . . . . . . . Garrisons Compromised . | . . . . . . . Overloaded Fab Kills . | . . . . . . . Fab Network Shutdowns . | . . . . . . . Hacking | -11 -10 -10 -9 -9 -9 -8 --------- Run | Scr Mat Min Mat Min Exi Min Machines Accessed 5 | . . 1 . . 4 . Terminals . | . . . . . . . Fabricators . | . . . . . . . Repair Stations . | . . . . . . . Recycling Units . | . . . . . . . Scanalyzers . | . . . . . . . Garrison Access . | . . . . . . . Total Hacks 50 | . . 1 . . 49 . Successful 50 | . . 1 . . 49 . Failed . | . . . . . . . Catastrophic . | . . . . . . . Database Lockouts . | . . . . . . . Manual 3 | . . . . . 3 . Terminals . | . . . . . . . Fabricators . | . . . . . . . Repair Stations . | . . . . . . . Recycling Units . | . . . . . . . Scanalyzers . | . . . . . . . Garrison Access . | . . . . . . . Terminal Hacks 50 | . . 1 . . 49 . Record 49 | . . . . . 49 . Open Door 1 | . . 1 . . . . Fabricator Hacks . | . . . . . . . Repair Station Hacks . | . . . . . . . Recycling Unit Hacks . | . . . . . . . Scanalyzer . | . . . . . . . Garrison Access Hacks . | . . . . . . . Unauthorized Hacks . | . . . . . . . Terminals . | . . . . . . . Fabricators . | . . . . . . . Repair Stations . | . . . . . . . Recycling Units . | . . . . . . . Scanalyzers . | . . . . . . . Garrison Access . | . . . . . . . Data Cores Recovered . | . . . . . . . Used . | . . . . . . . Hacking Detections . | . . . . . . . Full Trace Events . | . . . . . . . Feedback Events . | . . . . . . . Feedback Blocked . | . . . . . . . Robot Schematics Acquired . | . . . . . . . Robots Built . | . . . . . . . Matter . | . . . . . . . Time . | . . . . . . . Total Robot Build Rating . | . . . . . . . Part Schematics Acquired . | . . . . . . . Parts Built . | . . . . . . . Matter . | . . . . . . . Time . | . . . . . . . Total Part Build Rating . | . . . . . . . Parts Repaired . | . . . . . . . Time . | . . . . . . . Parts Recycled . | . . . . . . . Recycled Matter . | . . . . . . . Retrieved Matter . | . . . . . . . Retrieved Components . | . . . . . . . Parts Scanalyzed . | . . . . . . . Part Schematics Acquired . | . . . . . . . Parts Damaged . | . . . . . . . Bothacking | -11 -10 -10 -9 -9 -9 -8 ------------ Run | Scr Mat Min Mat Min Exi Min Used RIF Installer . | . . . . . . . Robots Hacked . | . . . . . . . Non-combat . | . . . . . . . Combat . | . . . . . . . Robot Hacks Applied . | . . . . . . . Relay Couplers Released . | . . . . . . . Robots Rewired . | . . . . . . . Allies Hacked . | . . . . . . . Hacks Repelled . | . . . . . . . Allies | -11 -10 -10 -9 -9 -9 -8 -------- Run | Scr Mat Min Mat Min Exi Min Total Allies 3 | . . 3 . . . . Largest Group 3 | . . 3 1 . . . Highest-Rated Group 40 | . . 40 16 . . . Highest-Rated Ally 16 | . . 16 16 . . . Total Orders . | . . . . . . . Ally Attacks 10 | . . 6 4 . . . Total Damage 203 | . . 84 119 . . . Kills 7 | . . 3 4 . . . Allies Corrupted . | . . . . . . . Allies Melted . | . . . . . . . Intel | -11 -10 -10 -9 -9 -9 -8 ------- Run | Scr Mat Min Mat Min Exi Min Robot Analysis Total . | . . . . . . . Derelict Logs Recovered 1 | . . 1 . . . . Drone Launches . | . . . . . . . Drone Recoveries . | . . . . . . . Exploration | -11 -10 -10 -9 -9 -9 -8 ------------- Run | Scr Mat Min Mat Min Exi Min Turns Passed 4857 | 63 446 1371 353 503 1895 226 Spaces Moved 2690 | 44 214 792 187 315 1109 29 Core 75 | 24 . 11 . . 11 29 Treads 1544 | 20 214 163 . 49 1098 . Legs 1071 | . . 618 187 266 . . Wheels . | . . . . . . . Hover . | . . . . . . . Flight . | . . . . . . . Fastest Speed 50 | 50 160 150 120 150 165 600 Average Speed 169 | 110 165 169 144 152 170 603 Slowest Speed 700 | 160 180 650 180 180 700 650 Overloaded Moves . | . . . . . . . Propulsion Burnouts . | . . . . . . . Robots Hopped . | . . . . . . . Cave-ins Triggered . | . . . . . . . Exploration Rate (%) 42 | 3 38 99 19 33 95 7 Regions Visited 6 Branch Regions 4 Pre-discovered Areas 1 | . . . . . 1 . Known Exits Taken . | . . . . . . . Unknown Exits Taken 6 | 1 1 1 1 1 1 . Scrap Searched 1 | . . 1 . . . . Spaces Dug . | . . . . . . . Terrain Destroyed 411 | . 220 41 93 14 . 43 Melee . | . . . . . . . Projectile 1 | . . . 1 . . . AOE 410 | . 220 41 92 14 . 43 Terrain Rammed . | . . . . . . . Walls Destroyed . | . . . . . . . Machines Disabled . | . . . . . . . Actions | -11 -10 -10 -9 -9 -9 -8 --------- Run | Scr Mat Min Mat Min Exi Min Total 2868 | 56 260 812 238 329 1117 56 Wait 3 | . 3 . . . . . Move 2684 | 43 213 791 186 314 1108 29 Hop . | . . . . . . . Pick Up 36 | 6 6 7 10 1 5 1 Fast Attach 2 | 2 . . . . . . Attach 33 | 4 7 6 9 2 1 4 Detach 2 | . 1 1 . . . . Swap . | . . . . . . . Drop 9 | . 2 1 . 2 3 1 Fire 91 | 1 28 5 33 10 . 14 Melee 7 | . . . . . . 7 Ram . | . . . . . . . Kick 1 | . . 1 . . . . Crush . | . . . . . . . Escape Stasis . | . . . . . . . Rewire . | . . . . . . . Trap . | . . . . . . . Miscellaneous . | . . . . . . . Route ------- -11/Scrapyard -10/Materials -10/Mines (discovered 2 exits: [*Mat x2]) -9/Materials -9/Mines -9/Exiles (discovered 2 exits: [*Min x2]) -8/Mines History --------- Turn | Location | Event 4 | -11/Scrapyard | Discovered new exit (range 16) 64 | -11/Scrapyard | Entered Materials 306 | -10/Materials | Build established: Mutant 384 | -10/Materials | Discovered new exit (range 9) 437 | -10/Materials | Lost 3 parts (1p1n1w) 510 | -10/Materials | Entered Mines 547 | -10/Mines | Met a Derelict bent on vengeance 1196 | -10/Mines | Met a Derelict who couldn't figure out how to use a Trap Extractor 1289 | -10/Mines | Discovered new exit (range 11) 1319 | -10/Mines | Assisted by bots powering up and referring to "LRC-V3" 1353 | -10/Mines | Learned Materials security intel 1658 | -10/Mines | Discovered new exit (range 7) 1881 | -10/Mines | Entered Materials 1881 | -9/Materials | Accompanied by 1 ally 1881 | -9/Materials | Evolved 2 slots: Power x1, Propulsion x1 2208 | -9/Materials | Discovered new exit (range 7) 2234 | -9/Materials | Entered Mines 2235 | -9/Mines | YI-UF0 nonchalantly dropped a Grenade Launcher on the ground 2319 | -9/Mines | Assembled infested the area 2324 | -9/Mines | Assisted by a Guerilla fighting off Assembled 2726 | -9/Mines | Deemed a non-threat by the Exiles lab entrance 2727 | -9/Mines | Discovered new exit (range 5) 2737 | -9/Mines | Entered Exiles 2810 | -9/Exiles | Met 8R-AWN 2825 | -9/Exiles | Discovered new exit (range 15) 2911 | -9/Exiles | Met EX-HEX 3090 | -9/Exiles | Met EX-DEC 3128 | -9/Exiles | Visited The Gauntlet 3265 | -9/Exiles | Learned location of Zion (-7) 3840 | -9/Exiles | Discovered new exit (range 11) 4014 | -9/Exiles | Met EX-BIN 4095 | -9/Exiles | Aligned with FarCom system 4097 | -9/Exiles | Given EX-Vault access code 4222 | -9/Exiles | Opened EX-Vault 4229 | -9/Exiles | Found Prototype Flight Unit 4258 | -9/Exiles | Found Prototype Processor 4273 | -9/Exiles | Found Prototype Slashing Weapon 4352 | -9/Exiles | Warned to stay clear of 0b10 Research branches 4632 | -9/Exiles | Stole two prototypes: 0b10 Alert Chip, Longsword +1 4632 | -9/Exiles | Entered Mines 4651 | -8/Mines | Core integrity fell below 50% 4659 | -8/Mines | Identified Longsword +1 4684 | -8/Mines | Core integrity fell below 20% 4691 | -8/Mines | Lost 5 parts (1p1n3w) 4858 | -8/Mines | Destroyed self via exploding Compression Vault Last Messages --------------- 04680_ G-47 Trooper Aluminum Leg severed. 04682_ Destroyed Particle Gun. 04690_ Destroyed Imp. Heat Sink. 04694_ Destroyed Particle Gun. 04694_ Destroyed Lgt. Nuclear Core. 04696_ G-47 Trooper destroyed. 04697_ Acquired 28 matter. 04702_ The unstable cave ceiling collapses. 04722_ Acquired Minigun. 04728_ The unstable cave ceiling collapses. 04741_ Acquired 25 matter. 04858_ L-31 Rogue destroyed. 04858_ Destroyed Com. Wheel. 04858_ G-47 Trooper destroyed. 04858_ Destroyed Particle Gun. 04858_ Destroyed Lgt. Ion Engine. 04858_ Destroyed Com. Wheel. 04858_ Destroyed Tractor Beam. 04858_ Destroyed Lgt. Ion Engine. 04858_ Destroyed Com. Wheel. Map ----- +----------------------------------------------------+ | | | | | | | | | | | | | | | | | | | ????????????????????????????????????? | | ????????????????????????????????????? | | ????????????????????????????????????? | | ????????????????????????????????????? | | ????????????????????????????????????? | | ????????????????????????????????????? | | ????????????????????????????????????? | | ????????????????????????????????????? | | ?????####???????????????????????????? | | ????## ##??????????????????????????? | | ???## ##?????????????????????????? | | ???# #?????????????????????????? | | ???## ##????????????????????????? | | ??## #????????????????????????? | | ??# #####?????????????ss?????? | | ??# =# ##! ########?????????????? | | ??# [ @ ! #??????s?????? | | ??## r%/######## #????????????? | | ???# # #?????????????????????? | | ???# # # % #?????????????????????? | | ???# #?????????????????????? | | ???#### gg #?????????????????????? | | ??????## r ??????????????????????? | | ??????? ??????????????????????? | | ??????#### #????????????????????????? | | ?????????# #????????????????????????? | | ?????????# #????????????????????????? | | ?????????# #????????????????????????? | | ?????????# #????????????????????????? | | ?????????# ????????????????????????? | | ?????????###????????????????????????? | | ????????????????????????????????????? | | ????????????????????????????????????? | | ????????????????????????????????????? | | ????????????????????????????????????? | | ????????????????????????????????????? | | ????????????????????????????????????? | | ????????????????????????????????????? | | ????????????????????????????????????? | | ????????????????????????????????????? | | ????????????????????????????????????? | +----------------------------------------------------+ Best States ------------- Heat Dissipation 28 Energy Generation 15 Energy Capacity 150 Matter Stores 300 Matter Capacity 300 Sight Range 16 Terrain Scan Density 10 Reclamation Efficiency 10 Evasion (%) 50 Recoil Reduction 2 Item Schematics ----------------- None Robot Schematics ------------------ None Fabricated ------------ Nothing Alien Tech Used ----------------- None Achievements -------------- None Challenges ------------ None Game ------ Seed BottomlessDamperRegulator Manual? 0 Play Time 00:38:17 Cumulative 24.1 hours Start 2021.04.01 @ 08:19:05 End 2021.04.01 @ 09:17:27 Sessions 1 Manual Loads 0 Difficulty Rogue Special Mode AFD2021/Volatile Game No. 95 Rogue 89 Adventurer 0 Explorer 6 Win Type - Total 0 Types 0/0/0/0/0/0/0/0/0 Lore% 21 Gallery% 20 Achievement% 19 Wizard Run 0 Options --------- ASCII 0 Keyboard 0 Movement Arrows Keybinds 0 Fullscreen 1 Font 18/X11 Map View 76x50 Tactical HUD 1 Map Filters NONE Filters NONE Steam 1 RUN: 3b3eb524-02e1-482b-acc1-07cf02870149